Cogmind - Beta 13 X2 @@@ ROGUE MODE // 2023.12.23 @ 13:11:10 Player: Terminus Result: Destroyed by H9-A91(R) with Subdweller Laser Performance ------------- Evolutions (0) 0 Regions Visited (3) 600 Robots Destroyed (36) 180 Value Destroyed (942) 942 Prototype IDs (1) 20 Alien Tech Used (0) 0 Bonus (-17) -17 TOTAL SCORE: 1725 Bonus ------- Follower Combat Kills 21 Friendly Fire -38 Cogmind --------- Core Integrity 0/250 Matter 295/300 Energy 250/250 System Corruption 10% Temperature Cool (21) Movement Core (300) Ox5 Location -10/Subcaves Parts ------- > --- POWER (1) -------- Ion Engine > --- PROPULSION (2) --- Improved Treads > --- UTILITY (2) ------ (None) > --- WEAPON (2) ------- Subdweller Beam Cannon Battle Cannon (fused) > --- INVENTORY (5) ---- Light Ion Engine Improved Treads Power Bank Subdweller Machine Gun Peak State ------------ > --- POWER ------------ Light Ion Engine > --- PROPULSION ------- Improved Treads Wheel > --- UTILITY ---------- Heat Sink Huge Storage Unit > --- WEAPON ----------- Improved Assault Rifle Improved Assault Rifle > --- INVENTORY -------- Light Ion Engine Light Treads Light Treads Improved Treads Improved Treads Improved Treads Compact Wheel Hacking Suite EM Pulse Gun EM Pulse Gun Heavy EM Pulse Gun Heavy EM Pulse Gun Heavy EM Pulse Gun Heavy EM Pulse Gun Light Assault Rifle Light Assault Rifle Improved Assault Rifle Improved Assault Rifle [Rating: 15] Favorites ----------- Power Ion Engine Engine Ion Engine Propulsion Improved Treads Treads Improved Treads Wheel Compact Wheel Utility Huge Storage Unit Device Heat Sink Storage Huge Storage Unit Protection Scrap Shield Weapon Beam Cannon Energy Cannon Beam Cannon Ballistic Gun Improved Assault Rifle Ballistic Cannon Battle Cannon Launcher Mini Grenade Launcher Build | -11 -10 -10 -10 ------- Run | Yrd Mat Min Sub Slots Evolved . | . . . . Power . | . . . . Propulsion . | . . . . Utility . | . . . . Weapon . | . . . . Parts Attached 35 | 6 11 9 9 Power 4 | 1 2 . 1 Engine 4 | 1 2 . 1 Core . | . . . . Reactor . | . . . . Propulsion 7 | 2 2 3 . Treads 3 | 1 1 1 . Leg . | . . . . Wheel 4 | 1 1 2 . Hover . | . . . . Flight . | . . . . Utility 10 | 1 3 2 4 Device 3 | . 2 1 . Storage 2 | 1 1 . . Processor . | . . . . Hackware . | . . . . Protection 5 | . . 1 4 Artifact . | . . . . Weapon 14 | 2 4 4 4 Energy Gun . | . . . . Energy Cannon 4 | . 2 . 2 Ballistic Gun 7 | 2 2 2 1 Ballistic Cannon 1 | . . . 1 Launcher 2 | . . 2 . Special Weapon . | . . . . Impact Weapon . | . . . . Slashing Weapon . | . . . . Piercing Weapon . | . . . . Special Melee Weapon . | . . . . Unidentified Prototypes 1 | . 1 . . Parts Lost 11 | . 3 4 4 Power 1 | . 1 . . Propulsion 5 | . 1 3 1 Utility 4 | . 1 1 2 Weapon 1 | . . . 1 Highest Loss Streak 4 | . 2 4 3 To Critical Strikes . | . . . . Average Slot Usage (%) 92 | . 92 97 87 Engine 13 | . 13 14 14 Treads 14 | . 14 14 14 Wheel 13 | . 13 13 13 Device 4 | . 7 5 . Storage 10 | . 14 14 3 Protection 6 | . . 6 14 Energy Cannon 12 | . 9 14 13 Ballistic Gun 9 | . 18 6 3 Ballistic Cannon 3 | . . . 10 Launcher 2 | . . 6 . Naked Turns . | . . . . Heaviest Build 94 | 10 92 94 94 Greatest Support 16 | 10 16 16 16 Greatest Overweight (x) 8 | . 8 5 5 Average Overweight (x) 3 | . 5 5 2 Largest Inventory Capacity 25 | 8 25 25 25 Average Capacity 19 | 7 24 25 9 Most Carried 25 | 4 25 25 25 Average Carried 17 | 2 19 23 9 Final Capacity 25 | 8 25 25 5 Final Carried 25 | 4 25 25 4 Class Distribution -------------------- 76% | Mutant 23% | Subdweller-Mutant Dominant Class ---------------- Mutant | -10/Materials Mutant | -10/Mines Subdweller-Mutant | -10/Subcaves Resources | -11 -10 -10 -10 ----------- Run | Yrd Mat Min Sub Matter Collected 1026 | 219 350 315 142 Remotely . | . . . . Salvage Created 1433 | . 886 122 425 Parts 103 | . 67 7 29 Haulers Intercepted . | . . . . Recyclers Shooed 2 | . 2 . . Parts Field Recycled . | . . . . Retrieved Matter . | . . . . Parts Self-Destructed 6 | . . . 6 Prevented . | . . . . Kills | -11 -10 -10 -10 ------- Run | Yrd Mat Min Sub Combat Hostiles Destroyed 39 | . 14 15 10 Guns 11 | . 10 . 1 Cannons 13 | . 4 1 8 AOE 14 | . . 14 . Classes Destroyed 10 | . 8 1 1 Worker 1 | . 1 . . Builder 3 | . 2 1 . Tunneler 1 | . 1 . . Recycler 4 | . 3 1 . Operator 1 | . 1 . . Watcher 2 | . 2 . . Swarmer 3 | . 3 . . Grunt 11 | . 11 . . Subdweller 10 | . . . 10 Assembled 15 | . . 15 . Best Kill Streak 12 | . 8 12 3 Combat Bots Only 12 | . 5 12 3 Max Kills in Single Turn 4 | . 2 4 1 Gunslinging . | . . . . Exploded 4 | . . 4 . Melee . | . . . . Uniques/NPCs Destroyed . | . . . . Combat | -11 -10 -10 -10 -------- Run | Yrd Mat Min Sub Hostile Shots Fired 98 | . 30 21 47 Missed 27 | . 11 4 12 Damage Taken 1741 | . 420 436 885 Core 263 | . 29 90 144 Absorbed by Shields . | . . . . Core Remaining (%) 100 | 100 . . . Volleys Fired 115 | . 49 27 39 Largest 2 | . 2 2 1 Hottest 120 | . 120 90 80 Shots Fired 162 | . 98 30 34 Gun 75 | . 68 5 2 Cannon 72 | . 30 10 32 Launcher 15 | . . 15 . Special . | . . . . Kinetic 76 | . 68 5 3 Thermal 71 | . 30 10 31 Explosive 15 | . . 15 . Electromagnetic . | . . . . Robot Hit Streak 37 | . 8 7 37 Robot Miss Streak 4 | . 4 3 1 Penetration Max . | . . . . Secondary Targets . | . . . . Shots Hit Robots 101 | . 60 9 32 Core Hits 66 | . 30 26 10 Critical Kills 1 | . . . 1 Critical Parts Destroyed 1 | . 1 . . Critical Strikes 2 | . 1 . 1 Meltdown 1 | . . . 1 Destroy 1 | . 1 . . Melee Attacks . | . . . . Impact . | . . . . Slashing . | . . . . Piercing . | . . . . Sneak Attacks . | . . . . Combat Hostiles . | . . . . Follow-up Attacks . | . . . . Damage Inflicted 2925 | . 991 1087 847 Guns 691 | . 638 14 39 Cannons 1283 | . 353 122 808 Explosions 951 | . . 951 . Melee . | . . . . Ramming . | . . . . Kinetic 691 | . 638 14 39 Thermal 1283 | . 353 122 808 Explosive 951 | . . 951 . Electromagnetic . | . . . . Impact . | . . . . Slashing . | . . . . Piercing . | . . . . Highest Corruption 10 | . . 10 10 Average Corruption 9 | . . 9 10 Corruption Purged . | . . . . Corruption Blocked . | . . . . Effects 89 | . . 46 43 Message Errors 17 | . . 9 8 Matter Fused 20 | . . 12 8 Heat Flow Errors 11 | . . 4 7 Energy Discharges 10 | . . 4 6 Parts Fused 2 | . . 1 1 Data Loss (minor) 12 | . . 9 3 Data Loss (major) 3 | . . . 3 Misfires 2 | . . 1 1 Alerts 1 | . . . 1 Weapon Failures 11 | . . 6 5 Overload Shots . | . . . . Overflow Damage 60 | . 14 46 . Projectiles 17 | . 14 3 . Explosions 43 | . . 43 . Melee . | . . . . Knockbacks . | . . . . Impact . | . . . . Kinetic . | . . . . Secondary . | . . . . Self-Inflicted Damage 89 | . . 89 . Shots 4 | . . 4 . Rammed . | . . . . Targets Rammed . | . . . . Kicked . | . . . . Crushed . | . . . . Highest Temperature 267 | . 132 267 246 Average Temperature 68 | . 38 75 85 Received Heat Transfer 285 | . 99 . 186 Effects 1 | . . 1 . Interference 1 | . . 1 . Siege Activations . | . . . . Robots Corrupted . | . . . . Combat Hostiles . | . . . . Parts Fried . | . . . . Impact Corruptions . | . . . . Robots Melted 1 | . . . 1 Combat Hostiles 1 | . . . 1 Parts Melted 4 | . 1 . 3 Heat Transferred 2072 | . 740 259 1073 Parts Sabotaged . | . . . . Parts Stolen . | . . . . Parts Stripped . | . . . . Power Chain Reactions . | . . . . Missiles Intercepted . | . . . . Alert | -11 -10 -10 -10 ------- Run | Yrd Mat Min Sub Peak Influence 260 | . 260 114 . Initial 65 | . . 65 . Average 80 | . 126 45 . Maximum Alert Level 1 | . 1 . . Low Security (%) 90 | 100 78 100 . Level 1 9 | . 21 . . Level 2 . | . . . . Level 3 . | . . . . Level 4 . | . . . . Level 5 . | . . . . High Security . | . . . . Max Security . | . . . . Squads Dispatched 3 | . 3 . . Investigation 2 | . 2 . . Extermination . | . . . . Reinforcement 1 | . 1 . . Assault . | . . . . Garrison . | . . . . Intercept . | . . . . Searches Triggered . | . . . . Construction Impeded . | . . . . Haulers Reinforced . | . . . . Active Scanning Responses . | . . . . Cargo Convoy Interrupts . | . . . . Stealth | -11 -10 -10 -10 --------- Run | Yrd Mat Min Sub Distress Signals 2 | . 1 1 . Communications Jammed . | . . . . Distress Signals . | . . . . Times Spotted 50 | . 18 15 17 Peak Tracking Total 6 | . 4 6 3 Tactical Retreats 1 | . 1 . . Traps | -11 -10 -10 -10 ------- Run | Yrd Mat Min Sub Traps Triggered 1 | . 1 . . Indirectly . | . . . . Trap Hack Attempts . | . . . . Triggered . | . . . . Disarmed . | . . . . Reprogrammed . | . . . . Reused . | . . . . Traps Extracted . | . . . . Installed . | . . . . Triggered . | . . . . Machines | -11 -10 -10 -10 ---------- Run | Yrd Mat Min Sub Machines Disabled 4 | . 2 2 . Max in Single Turn 1 | . 1 1 . Machines Repaired . | . . . . Machines Dismantled . | . . . . Machines Sabotaged . | . . . . Overloaded Fab Kills . | . . . . Hacking | -11 -10 -10 -10 --------- Run | Yrd Mat Min Sub Machines Accessed 5 | . 5 . . Terminals 3 | . 3 . . Fabricators . | . . . . Repair Stations . | . . . . Recycling Units 2 | . 2 . . Scanalyzers . | . . . . Garrison Access . | . . . . Total Hacks 12 | . 12 . . Successful 5 | . 5 . . Failed 7 | . 7 . . Catastrophic 1 | . 1 . . Database Lockouts . | . . . . Manual 10 | . 10 . . Terminals 10 | . 10 . . Fabricators . | . . . . Repair Stations . | . . . . Recycling Units 2 | . 2 . . Scanalyzers . | . . . . Garrison Access . | . . . . Terminal Hacks 1 | . 1 . . Hauler Manifests 1 | . 1 . . Fabricator Hacks . | . . . . Repair Station Hacks . | . . . . Recycling Unit Hacks . | . . . . Scanalyzer . | . . . . Garrison Access Hacks . | . . . . Unauthorized Hacks 4 | . 4 . . Terminals 2 | . 2 . . Botnet 2 | . 2 . . Fabricators . | . . . . Repair Stations . | . . . . Recycling Units 2 | . 2 . . Tunnel 2 | . 2 . . Scanalyzers . | . . . . Garrison Access . | . . . . Data Cores Recovered . | . . . . Used . | . . . . Hacking Detections 3 | . 3 . . Full Trace Events . | . . . . Feedback Events . | . . . . Feedback Blocked . | . . . . Robot Schematics Acquired . | . . . . Robots Built . | . . . . Authchips . | . . . . Time . | . . . . Total Robot Build Rating . | . . . . Part Schematics Acquired . | . . . . Parts Built . | . . . . Authchips . | . . . . Time . | . . . . Total Part Build Rating . | . . . . Parts Repaired . | . . . . Time . | . . . . Parts Recycled . | . . . . Recycled Matter . | . . . . Retrieved Matter . | . . . . Retrieved Components . | . . . . Parts Scanalyzed . | . . . . Part Schematics Acquired . | . . . . Parts Damaged . | . . . . Bothacking | -11 -10 -10 -10 ------------ Run | Yrd Mat Min Sub Used RIF Installer . | . . . . Robots Hacked . | . . . . Non-combat . | . . . . Combat . | . . . . Robot Hacks Applied . | . . . . Relay Couplers Released . | . . . . Fabnet Peak Effective % . | . . . . Robots Rewired . | . . . . Allies Hacked . | . . . . Hacks Repelled . | . . . . Allies | -11 -10 -10 -10 -------- Run | Yrd Mat Min Sub Total Allies 4 | . . 4 . Largest Group 3 | . . 3 3 Highest-Rated Group 40 | . . 40 40 Highest-Rated Ally 31 | . . 31 16 Total Orders . | . . . . Ally Attacks 22 | . . 9 13 Total Damage 156 | . . 43 113 Kills 3 | . . . 3 Allies Corrupted . | . . . . Allies Melted . | . . . . Intel | -11 -10 -10 -10 ------- Run | Yrd Mat Min Sub Robot Analysis Total . | . . . . Derelict Logs Recovered 1 | . . 1 . Drone Launches . | . . . . Drone Recoveries . | . . . . Exploration | -11 -10 -10 -10 ------------- Run | Yrd Mat Min Sub Turns Passed 3062 | 57 936 1091 978 Spaces Moved 1610 | 60 392 562 596 Core 13 | 13 . . . Treads . | . . . . Legs . | . . . . Wheels 1597 | 47 392 562 596 Hover . | . . . . Flight . | . . . . Fastest Speed 50 | 50 80 175 100 Average Speed 157 | 73 173 175 137 Slowest Speed 200 | 80 200 175 175 Overloaded Moves . | . . . . Propulsion Burnouts . | . . . . Robots Hopped . | . . . . Cave-ins Triggered . | . . . . Exploration Rate (%) 45 | 3 53 84 42 Regions Visited 3 Branch Regions 2 Pre-discovered Areas 2 | . 2 . . Known Exits Taken . | . . . . Unknown Exits Taken 3 | 1 1 1 . Scrap Searched 11 | . . 1 10 Spaces Dug 24 | . . 24 . Terrain Destroyed 149 | . . 148 1 Melee . | . . . . Projectile 1 | . . . 1 AOE 148 | . . 148 . Terrain Rammed . | . . . . Walls Destroyed . | . . . . Machines Disabled . | . . . . Actions | -11 -10 -10 -10 --------- Run | Yrd Mat Min Sub Total 1970 | 69 551 633 717 Wait 142 | . 67 30 45 Move 1607 | 59 391 561 596 Hop . | . . . . Pick Up 43 | 4 25 5 9 Fast Attach 14 | 6 4 . 4 Attach 7 | . 2 4 1 Detach 1 | . 1 . . Swap 14 | . 5 5 4 Drop 20 | . 7 1 12 Fire 115 | . 49 27 39 Melee . | . . . . Ram . | . . . . Kick . | . . . . Crush . | . . . . Escape Stasis . | . . . . Rewire . | . . . . Trap . | . . . . Miscellaneous 7 | . . . 7 Route ------- -11/Scrapyard -10/Materials (discovered 2 exits: [*Mat] / [*Min]) -10/Mines (discovered 2 exits: [*Mat] / [*Sub]) -10/Subcaves (discovered 2 exits: [*Mat x2]) History --------- Turn | Location | Event 4 | -11/Scrapyard | Discovered new exit (range 14) 58 | -11/Scrapyard | Entered Materials 313 | -10/Materials | Discovered new exit (range 16) 314 | -10/Materials | Build established: Mutant 810 | -10/Materials | Discovered new exit (range 13) 994 | -10/Materials | Entered Mines 995 | -10/Mines | Assembled infested the area 997 | -10/Mines | Received a Mining Laser from a helpful Derelict 1001 | -10/Mines | Assisted by a Guerilla fighting off Assembled 1056 | -10/Mines | System corruption reached 10% 1081 | -10/Mines | Destroyed 12 combat bots 1090 | -10/Mines | Lost 4 parts (3n1u) 1864 | -10/Mines | Discovered new exit (range 5) 1890 | -10/Mines | Assisted by bots powering up and referring to "LRC-V3" 2073 | -10/Mines | Discovered new exit (range 6) 2085 | -10/Mines | Entered Subcaves 2085 | -10/Subcaves | Accompanied by 3 allies 2215 | -10/Subcaves | Discovered new exit (range 16) 2702 | -10/Subcaves | Build established: Subdweller-Mutant 2718 | -10/Subcaves | Core integrity fell below 50% 2791 | -10/Subcaves | Discovered new exit (range 12) 2814 | -10/Subcaves | Shifting Twisted Machinery released Mak. Sword 2873 | -10/Subcaves | A Subdweller sparked back to life 2873 | -10/Subcaves | A Subdweller sparked back to life 2873 | -10/Subcaves | A Subdweller sparked back to life 2891 | -10/Subcaves | Found Prototype Device 3032 | -10/Subcaves | Ambushed by Subdweller buried in earth 3040 | -10/Subcaves | Ambushed by Subdweller buried in earth 3050 | -10/Subcaves | Core integrity fell below 20% 3063 | -10/Subcaves | Destroyed by H9-A91(R) with Subdweller Laser Last Messages --------------- 02949_ System corrupted: Substantial component data lost. 02966_ System corrupted: Energy discharge (-77). 02983_ System corrupted: Energy discharge (-72). 02985_ System corrupted: Sub. Beam Cannon failed to cycle. 02999_ System corrupted: Heat flow error (+280). 03017_ System corrupted: Substantial component data lost. 03018_ G5-25M(R) destroyed. 03032_ System corrupted: Sub. Beam Cannon failed to cycle. 03032_ R0-T40(R) destroyed. 03033_ FS-YDP(R): "ARGHSUB!" 03041_ H9-A91(R): "NOSTUCKSUB!" 03043_ System corrupted: Energy discharge (-55). 03044_ Dropped Scrap Shield Fragment. 03046_ Scrap Shield Fragment affixed to Scrap Shield (+48). 03053_ Scrap Shield destroyed. 03055_ Com. Wheel destroyed. 03056_ Acquired Scrap Shield. 03057_ System corrupted: Sub. Beam Cannon failed to cycle. 03061_ MNKG>M9|V:TCQ%FBGQR7&=PB3O7O 03062_ Scrap Shield destroyed. Map ----- +----------------------------------------------------+ | ?????????????????????????????????????????????????? | | ?????????????????????????????????????????????????? | | ?????????????????????????????????????????????????? | | ?????????????????????????????????????????????????? | | ?????????????????????????????????????????????????? | | ?????????????????????????????????????????????????? | | ?????????????????????????????????????????????????? | | ???????????????????????????????????????????????? | | ???????????????????????????????????????????????? ^ | | ?????????????????????????? ??????????????? ????? | | ?????????????????????????? ?????????????? ????? | | ?????????????????????????? "?????????????# #???? | | ?????????????????????????? #?????????????# ???? | | ?????????????????????????# "?????????????# #???? | | ????????????????????????? #????????#???## #???? | | ?????????????????????????# #??????? #??# ???? | | ?????????????????????????# ???#""""""??# ####? | | ?????????????????????????# #???#""""""#?# #? | | ?????????????????????#???# #????" " #?# ## | | ???????????????????### ??# ##???"" " #?# # | | ????????????????####;# ### ##???" " ### | | ????????????????""""#; ; ###???# ### | | ????????????????""" = ;;#????# ## | | ?????????????" """ %*R ;#?#### | | ?????????????? " %! ;### " | | ?????????????????""" #; @ ##"" ### | | ?????????????????????# " ##?## | | ?????????????????????#; " ####???## | | ???????????????????? ; R ;; #; #???????# # | | ???????????????????### ## ;;#;##### ##???????### | | ?????????????????????##?########???####??????????? | | ?????????????????????????????????????????????????? | | ?????????????????????????????????????????????????? | | ?????????????????????????????????????????????????? | | ?????????????????????????????????????????????????? | | ?????????????????????????????????????????????????? | | ?????????????????????????????????????????????????? | | ?????????????????????????????????????????????????? | | ?????????????????????????????????????????????????? | | ?????????????????????????????????????????????????? | | ?????????????????????????????????????????????????? | | ?????????????????????????????????????????????????? | | ?????????????????????????????????????????????????? | | ?????????????????????????????????????????????????? | | ?????????????????????????????????????????????????? | | | | | | | | | | | +----------------------------------------------------+ Best States ------------- Heat Dissipation 35 Energy Generation 10 Energy Capacity 250 Matter Stores 300 Matter Capacity 300 Sight Range 16 Terrain Scan Density 10 Armor Coverage 800 Evasion (%) 50 Item Schematics ----------------- None Robot Schematics ------------------ None Fabricated ------------ Nothing Alien Tech Used ----------------- None Achievements -------------- None Challenges ------------ None Game ------ Seed BiocellThermoelectricOptics Manual? 0 Play Time 00:15:28 Cumulative 1851.7 hours Start 2023.12.23 @ 12:55:57 End 2023.12.23 @ 13:11:10 Sessions 1 Manual Loads 0 Difficulty Rogue Special Mode None Game No. 647 Rogue 647 Adventurer 0 Explorer 0 Win Type - Total 144 Types 29/13/64/7/1/2/26/1/1 Lore% 95 Gallery% 96 Achievement% 88 Wizard Run 0 Options --------- ASCII 0 Keyboard 0 Movement Numpad Keybinds 0 Fullscreen 2 Font 18/SmallcapsGlow Map View 76x50 Zoom Use 0% Tactical HUD 1 Map Filters NONE Filters NONE Steam 1 RUN: 8c64be82-5555-466b-989e-fe56987545f4